bitfinex-derivatives/quotes_BNBF0:USTF0_20250302
["timestamp","ask_amount","ask_price","bid_price","bid_amount"]
[1740930853351,1.70271758,614.13,612.3,0.29984558]
[1740930853552,1.44632993,614.89,612.28,0.29984558]
[1740930853852,1.70252321,614.12,612.27,0.699]
[1740930854053,1.44632993,614.89,612.28,0.29954652]
[1740930854251,1.7024538,614.11,612.28,0.29954652]
[1740930854455,1.7024538,614.11,612.29,0.29954652]
[1740930854751,1.44632993,614.89,612.3,0.29954652]
[1740930855051,0.27258035,614.88,612.31,0.29954652]
[1740930855253,0.27258035,614.87,612.32,0.29954652]
[1740930855447,0.27258035,614.88,612.28,0.29954652]
[1740930855649,0.27258035,614.88,612.27,0.699]
[1740930855650,0.27258035,614.86,612.7,1.16391059]
[1740930855851,0.27258035,614.85,612.71,0.29954652]
[1740930856748,0.27258035,614.84,612.71,0.29954652]
[1740930857048,0.32534079,614.74,612.72,0.32641336]
[1740930857451,0.27258035,614.73,612.73,0.29954652]
[1740930857753,0.27258035,614.72,612.73,0.29954652]
[1740930858051,0.27258035,614.71,612.73,0.29954652]
[1740930858251,0.27258035,614.7,612.73,0.29954652]
[1740930858451,0.27258035,614.69,612.73,0.29954652]
[1740930858647,0.32534079,614.74,612.73,0.29954652]
[1740930858648,0.27258035,614.73,612.73,0.29954652]
[1740930858850,0.27258035,614.72,612.73,0.29954652]
[1740930859050,0.27266158,614.71,612.74,0.29958772]
[1740930859250,0.27266158,614.7,612.75,0.29958772]
[1740930859452,0.27266158,614.7,612.72,0.32641336]
[1740930859453,0.27266158,614.69,612.76,0.29958772]
[1740930859655,0.27266158,614.73,612.73,0.29958772]
[1740930859849,1.70190568,614.69,612.74,0.29958772]
[1740930860051,0.27266158,614.68,612.73,0.29958772]
[1740930860253,0.27266158,614.68,612.74,0.29958772]
[1740930860450,0.27266158,614.67,612.73,0.29958772]
[1740930860650,0.27266158,614.66,612.74,0.29958772]
[1740930860854,0.27266158,614.65,612.73,0.29958772]
[1740930861053,0.27266158,614.64,612.74,0.29958772]
[1740930861255,0.27266158,614.63,612.73,0.29958772]
[1740930861454,0.27266158,614.62,612.74,0.29958772]
[1740930861652,0.27266158,614.61,612.73,0.29958772]
[1740930861855,0.27266158,614.6,612.74,0.29958772]
[1740930862056,0.27266158,614.59,612.73,0.29958772]
[1740930862356,0.27266158,614.58,612.74,0.29958772]
[1740930862554,0.27266158,614.57,612.73,0.29958772]
[1740930862754,0.27266158,614.56,612.74,0.29958772]
[1740930863057,0.27266158,614.55,612.75,0.29958772]
[1740930863257,0.27266158,614.55,612.72,0.32641336]
[1740930863258,0.27266158,614.54,612.73,0.29958772]
[1740930863458,0.27266158,614.53,612.72,0.32641336]
[1740930863655,0.27266158,614.52,612.73,0.29968101]
[1740930863856,0.27266158,614.51,612.73,0.29968101]
[1740930864057,0.27266158,614.55,612.73,0.29968101]
[1740930864253,0.27266158,614.54,612.73,0.29968101]
[1740930864456,0.27266158,614.53,612.73,0.29968101]
[1740930864656,0.27266158,614.52,612.73,0.29968101]
[1740930864855,0.27266158,614.51,612.73,0.29968101]
[1740930865056,0.27266158,614.5,612.73,0.29968101]
[1740930865253,0.27266158,614.55,612.73,0.29968101]
[1740930865457,0.27266158,614.54,612.73,0.29968101]
[1740930865655,0.27266158,614.53,612.73,0.29968101]
[1740930865855,0.27266158,614.55,612.73,0.29968101]
[1740930866061,0.27266158,614.54,612.73,0.29968101]
[1740930866260,0.27266158,614.55,612.73,0.29968101]
[1740930866461,0.27266158,614.54,612.73,0.29968101]
[1740930866660,0.27266158,614.55,612.73,0.29968101]
[1740930866860,0.27266158,614.54,612.74,0.81]
[1740930867062,0.27266158,614.53,612.75,0.29968101]
[1740930867262,0.27266158,614.52,612.75,0.29968101]
[1740930867462,0.27266158,614.55,612.75,0.29968101]
[1740930869963,0.27266158,614.55,612.76,0.29968101]
[1740930870162,0.27266158,614.55,612.75,0.29968101]
[1740930870361,0.27266158,614.55,612.76,0.29968101]
[1740930870561,0.27266158,614.55,612.85,1.16391059]
[1740930870759,1.70209297,614.56,612.86,0.29968101]
[1740930870961,0.27262137,614.55,612.87,0.29954671]
[1740930871158,0.27262137,614.55,612.88,0.29954671]
[1740930871361,0.27262137,614.55,612.89,0.29954671]
[1740930871559,0.27262137,614.55,612.86,0.29954671]
[1740930871760,0.27262137,614.55,612.87,0.29954671]
[1740930871960,0.27262137,614.55,612.88,0.29954671]
[1740930872162,0.27262137,614.55,612.86,0.29954671]
[1740930872464,0.27262137,614.55,612.87,0.29954671]
[1740930872761,0.27253582,614.54,612.88,0.29946014]
[1740930872958,0.27253582,614.53,612.89,0.29946014]
[1740930873161,0.27253582,614.55,612.87,0.29946014]
[1740930874767,0.27253582,615.32,612.87,0.29946014]
[1740930874964,1.70120543,614.54,612.87,0.29946014]
[1740930875164,0.32503941,615.31,612.87,0.29946014]
[1740930875460,1.70121929,614.53,612.87,0.29946014]
[1740930875665,0.32503941,615.31,613.02,1.16391059]
[1740930875866,0.27242481,615.3,613.03,0.29946014]
[1740930876165,0.27242481,615.29,613.03,0.29946014]
[1740930876365,0.27242481,615.28,613.03,0.29946014]
[1740930876567,0.27242481,615.27,613.03,0.29946014]
[1740930876768,0.27242481,615.26,613.03,0.29946014]
[1740930876960,0.27242481,615.25,613.03,0.29946014]
[1740930877165,0.27242481,615.24,613.03,0.29946014]
[1740930877366,0.27242481,615.23,613.03,0.29946014]
[1740930877567,0.27242481,615.22,613.03,0.29946014]
[1740930877869,0.27242481,615.21,613.03,0.29946014]
[1740930878069,0.27242481,615.2,613.03,0.29946014]
[1740930878265,0.27242481,615.19,613.03,0.29946014]
[1740930878569,0.27242481,615.18,613.03,0.29946014]
[1740930878765,0.27242481,615.17,613.03,0.29946014]
[1740930878967,0.27242481,615.16,613.03,0.29946014]
[1740930879369,0.27242481,615.15,613.03,0.29946014]
[1740930879571,0.27242481,615.15,613.04,1.16391059]
[1740930879771,0.27242481,615.14,613.05,0.29946014]
[1740930879966,0.27242481,615.24,613.05,0.29946014]
[1740930880166,1.700575,615.25,613.05,0.29946014]
[1740930880167,0.27242481,615.23,613.05,0.29946014]
[1740930880369,0.27242481,615.22,613.05,0.29946014]
[1740930880572,0.27242481,615.21,613.05,0.29946014]
[1740930880773,0.27242481,615.2,613.05,0.29946014]
[1740930880971,0.27242481,615.19,613.05,0.29946014]
[1740930881271,0.27242481,615.18,613.05,0.29946014]
[1740930881468,0.27242481,615.17,613.05,0.29946014]
[1740930881665,0.27242481,615.16,613.05,0.29946014]
[1740930881869,0.27242481,615.15,613.15,0.32618445]
[1740930882071,0.27242481,615.29,613.16,0.29946014]
[1740930882373,0.27242481,615.28,613.16,0.29946014]
[1740930882573,0.27247837,615.27,613.17,0.29940197]
[1740930882767,0.27247837,615.26,613.16,0.29940197]
[1740930882970,0.27247837,615.25,613.17,0.29940197]
[1740930883167,0.27247837,615.24,613.16,0.29940197]
[1740930883472,0.27247837,615.23,613.17,0.29940197]
[1740930883672,0.27247837,615.22,613.16,0.29940197]
[1740930883873,0.27247837,615.21,613.17,0.29940197]
[1740930884073,0.27247837,615.2,613.16,0.29940197]
[1740930884265,0.27247837,615.19,613.17,0.29940197]
[1740930884470,0.27247837,615.18,613.19,0.32616317]
[1740930884670,0.27247837,615.17,613.2,0.29940197]
[1740930884871,0.27247837,615.16,613.19,0.32616317]
[1740930885069,0.27247837,615.15,613.19,0.32616317]
[1740930885373,0.27247837,615.14,613.19,0.32616317]
[1740930885673,0.27247837,615.13,613.19,0.32616317]
[1740930885976,0.27253484,615.12,613.2,0.683]
[1740930886273,0.27253484,615.11,613.21,0.29944916]
[1740930886467,0.27253484,615.1,613.2,0.683]
[1740930886773,0.27253484,615.09,613.2,0.683]
[1740930886973,0.27253484,615.09,613.21,0.29944558]
[1740930887166,0.27253484,615.08,613.21,0.29944558]
[1740930887365,0.27253484,615.22,613.21,0.29944558]
[1740930887672,0.27253484,615.21,613.21,0.29944558]
[1740930887869,0.27253484,615.2,613.21,0.29944558]
[1740930888072,0.27253484,615.19,613.21,0.29944558]
[1740930888377,1.70071352,615.23,613.2,0.683]
[1740930888569,1.70071352,615.23,613.22,0.29937135]
[1740930888570,0.27244805,615.18,613.22,0.29937135]
[1740930888773,0.27244805,615.17,613.23,0.29937135]
[1740930888969,0.27244805,615.16,613.21,0.29937135]
[1740930889470,0.27244805,615.15,613.21,0.29937135]
[1740930889775,0.27244805,615.14,613.21,0.29937135]
[1740930889975,0.27244805,615.13,613.21,0.29937135]
[1740930890179,0.27244805,615.12,613.22,0.971]
[1740930890475,0.27244805,615.11,613.23,0.29937135]
[1740930890677,0.27244805,615.21,613.23,0.29937135]
[1740930890874,0.27244805,615.2,613.23,0.29937135]
[1740930891070,0.27244805,615.19,613.23,0.29937135]
[1740930891375,0.27244805,615.18,613.23,0.29937135]
[1740930891672,0.27244805,615.17,613.23,0.29937135]
[1740930891877,0.27244805,615.21,613.23,0.29937135]
[1740930892068,0.27244805,615.16,613.23,0.29937135]
[1740930892273,0.27244805,615.15,613.23,0.29937135]
[1740930892477,0.27244805,615.21,613.23,0.29937135]
[1740930892673,0.27234412,615.2,613.24,0.29926624]
[1740930892878,0.27234412,615.19,613.25,0.29926624]
[1740930893278,0.27234412,615.18,613.26,0.29926624]
[1740930893475,0.27234412,615.21,613.23,0.29926624]
[1740930893677,0.27234412,615.2,613.23,0.29926624]
[1740930893977,0.27234412,615.19,613.23,0.29926624]
[1740930894177,1.7005196,615.22,613.22,2.13491059]
[1740930894477,0.27242152,615.21,613.24,0.32613658]
[1740930894774,0.27242152,615.2,613.25,0.29934386]
[1740930894977,0.27242152,615.19,613.25,0.29934386]
[1740930895173,0.27242152,615.21,613.25,0.29934386]
[1740930895372,0.27242152,615.2,613.25,0.29934386]
[1740930895670,1.7005196,615.22,613.25,0.29934386]
[1740930895671,0.27242152,615.19,613.29,1.16391059]
[1740930895878,0.27242152,615.18,613.3,0.29934386]
[1740930896178,0.27242152,615.17,613.3,0.29934386]
[1740930896478,0.27242152,615.16,613.3,0.29934386]
[1740930896777,0.27242152,615.15,613.3,0.29934386]
[1740930896978,0.27242152,615.14,613.32,0.32609404]
[1740930897178,0.27242152,615.13,613.33,0.29934386]
[1740930897375,0.27242152,615.12,613.33,0.29934386]
[1740930897578,0.27246111,615.11,613.34,0.29938433]
[1740930897974,1.69934321,615.1,613.35,0.29938433]
[1740930898178,1.44632993,615.72,613.36,0.29938433]
[1740930898375,0.27199106,615.71,613.37,0.29938433]
[1740930898575,1.69915653,615.26,613.38,0.29938433]
[1740930898776,1.44632993,615.72,613.39,0.29938433]
[1740930898979,1.44632993,615.72,613.4,0.29938433]
[1740930899381,1.44632993,615.72,613.32,0.32609404]
[1740930899682,1.44632993,615.72,613.33,0.29879075]
[1740930899883,1.44632993,615.72,613.34,0.29879075]
[1740930900083,1.69843781,615.71,613.35,0.29879075]
[1740930900283,1.69843781,615.71,613.36,0.29879075]
[1740930900583,1.69843781,615.71,613.37,0.29879075]
[1740930900781,1.69843781,615.71,613.38,0.62597378]
[1740930900982,1.69843781,615.71,613.39,0.92476453]
[1740930901183,1.69843781,615.71,613.4,0.92476453]
[1740930901384,1.69843781,615.71,613.41,0.92476453]
[1740930901582,1.44632993,615.72,613.42,0.92476453]
[1740930901887,1.6982306,615.7,614.03,1.16391059]
[1740930902085,1.6982306,615.7,614.04,0.29879075]
[1740930902281,1.44632993,617.14,614.06,0.32570107]
[1740930902483,0.32408607,617.12,614.06,0.32570107]
[1740930902785,0.27173585,617.11,614.07,0.29879075]
[1740930902989,0.27173585,617.1,614.08,0.29879075]
[1740930903184,0.27173585,617.09,614.09,0.29879075]
[1740930903486,0.27173585,617.08,614.1,0.29879075]
[1740930903685,0.27173585,617.07,614.11,0.29879075]
[1740930903884,0.27173025,617.06,614.12,0.2986437]
[1740930904280,0.27173025,617.05,614.13,0.2986437]
[1740930904482,0.27173025,617.04,614.14,0.2986437]
[1740930904686,0.27173025,617.03,614.07,0.2986437]
[1740930904879,0.27173025,617.02,614.08,0.2986437]
[1740930905084,0.2718833,617.01,614.09,0.2987979]
[1740930905285,0.2718833,617.01,614.06,0.32570107]
[1740930905286,0.2718833,617.0,614.11,1.16391059]
[1740930905492,0.2718833,616.99,614.12,0.2987979]
[1740930905686,0.27182348,616.98,614.13,0.29873784]
[1740930905887,1.6966299,617.09,614.11,1.16391059]
[1740930906587,0.27181544,617.08,614.12,0.29873003]
[1740930906982,0.27181544,617.07,614.12,0.29873003]
[1740930907186,0.27181544,617.06,614.12,0.29873003]
[1740930907384,0.27181544,617.05,614.12,0.29873003]
[1740930907585,1.6966299,617.09,614.11,1.16391059]
[1740930907586,0.27181544,617.04,614.13,0.29873003]
[1740930907785,0.27181544,617.03,614.14,0.29873003]
[1740930907992,0.27181544,617.02,614.15,0.29873003]
[1740930908293,0.27181544,617.01,614.16,0.29873003]
[1740930908493,0.27181544,617.0,614.17,0.29873003]
[1740930908690,0.27181544,616.99,614.18,0.29873003]
[1740930908894,0.27181544,616.98,614.19,0.29873003]
[1740930909195,0.27181544,616.97,614.2,0.29873003]
[1740930909494,1.6966299,617.09,614.06,0.32570107]
[1740930909495,0.27181544,616.96,614.21,0.29873003]
[1740930909796,0.27198969,616.95,614.22,0.29890616]
[1740930909990,0.27198969,616.94,614.23,0.29890616]
[1740930910199,0.27198969,616.93,614.24,0.29890616]
[1740930910394,1.6966299,617.09,614.25,0.29890616]
[1740930910395,0.27198969,616.92,614.25,0.29890616]
[1740930910596,0.27198969,616.91,614.07,0.29890616]
[1740930910789,0.27198969,616.9,614.08,0.29890616]
[1740930910993,0.27198969,616.89,614.07,0.29890616]
[1740930911195,0.27198969,616.88,614.08,0.29890616]
[1740930911495,0.27198969,616.87,614.09,0.29890616]
[1740930911697,0.27198969,616.86,614.07,0.29890616]
[1740930911897,0.27198969,616.85,614.08,0.29890616]
[1740930912098,0.27198969,616.84,614.07,0.29890616]
[1740930912297,0.27198969,616.83,614.06,0.32570107]
[1740930912493,0.27198969,616.82,614.06,0.32570107]
[1740930912696,0.27198969,616.81,614.06,0.32570107]
[1740930912890,0.27198969,616.8,614.06,0.32570107]
[1740930913098,0.27198969,616.79,614.06,0.32570107]
[1740930913296,0.27198969,616.78,614.06,0.32570107]
[1740930913495,0.27198969,616.77,614.06,0.32570107]
[1740930913696,0.27198969,616.76,614.06,0.32570107]
[1740930913901,0.27198969,616.75,614.06,0.32570107]
[1740930914102,0.27198969,616.74,614.06,0.32570107]
[1740930914303,0.27198969,616.73,613.34,1.018]
[1740930914501,0.27198969,616.72,613.35,0.29918435]
[1740930914801,0.27198969,616.71,613.36,0.29918435]
[1740930915101,0.27198969,616.7,613.37,0.29918435]
[1740930915302,0.27198969,616.69,613.35,0.29918435]
[1740930915602,0.27198969,616.68,613.36,0.29918435]
[1740930915798,0.27198969,616.67,613.35,0.29918435]
[1740930916003,0.27198969,616.66,613.36,0.29918435]
[1740930916305,0.27198969,616.65,613.35,0.29918435]
[1740930916498,0.27198969,616.64,613.36,0.29918435]
[1740930916703,0.27198969,616.63,613.35,0.29918435]
[1740930917001,0.27198969,616.63,613.34,1.018]
[1740930917002,0.27198969,616.62,613.36,0.29918435]
[1740930917196,0.27198969,616.61,613.35,0.29918435]
[1740930917402,0.27198969,616.6,613.36,0.29918435]
[1740930917601,0.27198969,616.59,613.35,0.29918435]
[1740930917806,0.27198969,616.58,613.36,0.29918435]
[1740930918000,0.27198969,616.57,613.37,0.29918435]
[1740930918403,0.27198969,616.56,613.38,0.29918435]
[1740930918601,0.27198969,616.55,613.39,0.29918435]
[1740930918803,0.27198969,616.54,613.35,0.29918435]
[1740930918997,0.27198969,616.53,613.36,0.29918435]
[1740930919197,0.27198969,616.52,613.35,0.29918435]
[1740930919399,0.27198969,616.51,613.35,0.29918435]
[1740930919605,0.27198969,616.5,613.35,0.29918435]
[1740930919806,0.27198969,616.49,613.35,0.29918435]
[1740930919999,0.27198969,616.48,613.35,0.29918435]
[1740930920204,0.27198969,616.47,613.35,0.29918435]
[1740930920399,0.27198969,616.46,613.35,0.29918435]
[1740930920704,0.27248004,616.45,613.36,0.29940368]
[1740930920900,0.27248004,616.44,613.34,1.018]
[1740930921206,0.27248004,616.43,613.35,0.2994043]
[1740930921407,0.27248004,616.42,613.35,1.0294043]
[1740930921705,0.27248004,616.41,613.36,0.2994043]
[1740930921906,0.27248004,616.4,613.36,0.2994043]
[1740930922107,0.27248004,616.39,613.36,0.2994043]
[1740930922306,0.27248004,616.38,613.36,0.2994043]
[1740930922607,0.27248004,616.37,613.36,0.2994043]
[1740930922905,0.27248004,616.36,613.36,0.2994043]
[1740930923108,0.27248004,616.35,613.36,0.2994043]
[1740930923303,0.27248004,616.34,613.36,0.2994043]
[1740930923503,0.27248004,616.33,613.36,0.2994043]
[1740930923704,0.27248004,616.32,613.36,0.2994043]
[1740930923904,0.27248004,616.31,613.36,0.2994043]
[1740930924105,0.27248004,616.3,613.36,0.2994043]
[1740930924404,0.27248004,616.29,613.36,0.2994043]
[1740930924605,0.27248004,616.28,613.36,0.2994043]
[1740930924807,0.27248004,616.27,613.36,0.2994043]
[1740930925212,0.27248004,616.26,613.36,0.2994043]
[1740930925412,0.27248004,616.25,613.36,0.2994043]
[1740930925711,0.27248004,616.24,613.36,0.2994043]
[1740930925911,0.27248004,616.23,613.36,0.2994043]
[1740930926109,0.27248004,616.22,613.36,0.2994043]
[1740930926306,0.27248004,616.21,613.36,0.2994043]
[1740930926508,0.27248004,616.2,613.36,0.2994043]
[1740930926708,0.27248004,616.19,613.36,0.2994043]
[1740930926913,0.27248004,616.18,613.36,0.2994043]
[1740930927115,0.27248004,616.17,613.36,0.2994043]
[1740930927312,0.27248004,616.16,613.36,0.2994043]
[1740930927513,0.27248004,616.15,613.36,0.2994043]
[1740930927714,0.27248004,616.14,613.36,0.2994043]
[1740930928013,0.27248004,616.13,613.36,0.2994043]
[1740930928313,0.27248004,616.12,613.36,0.2994043]
[1740930928514,0.27248004,616.11,613.36,0.2994043]
[1740930928816,0.27248004,616.1,613.35,0.73]
[1740930929010,0.27248004,616.09,613.35,0.73]
[1740930929208,1.69950919,616.24,613.35,0.73]
[1740930929209,0.27248004,616.08,613.35,0.73]
[1740930929413,0.27248004,616.07,613.35,0.73]
[1740930929710,0.27248004,616.06,613.35,0.73]
[1740930929914,0.27248004,616.05,613.35,0.73]
[1740930930109,0.27248004,616.04,613.35,0.73]
[1740930930511,0.27248004,616.03,613.35,0.73]
[1740930930715,0.27248004,616.02,613.35,0.73]
[1740930930914,0.27248004,616.01,613.35,0.73]
[1740930931214,0.27248004,616.0,613.35,0.73]
[1740930931414,0.27248004,615.99,613.35,0.73]
[1740930931714,0.27248004,615.98,613.35,0.73]
[1740930931916,0.27263824,615.97,613.35,0.73]
[1740930932112,0.27263824,615.96,613.35,0.73]
[1740930932310,0.27263824,615.95,613.35,0.73]
[1740930932515,0.27263824,615.94,613.35,0.73]
[1740930932715,0.27263824,615.93,613.35,0.73]
[1740930933017,0.27263824,615.92,613.35,0.73]
[1740930933217,0.27263824,615.91,613.36,0.917]
[1740930933516,0.27263824,615.9,613.36,0.917]
[1740930933709,0.27263824,615.89,613.36,0.917]
[1740930933913,0.27263824,615.88,613.36,0.917]
[1740930934113,0.27263824,615.87,613.36,0.917]
[1740930934310,0.27263824,615.86,613.36,0.917]
[1740930934513,0.27263824,615.85,613.36,0.917]
[1740930934716,0.27263824,615.84,613.36,0.917]
[1740930934917,0.27263824,615.83,613.36,0.917]
[1740930935117,1.69950919,616.24,613.36,0.917]
[1740930935314,0.27260433,616.23,613.36,0.917]
[1740930935510,0.27260433,616.22,613.36,0.917]
[1740930935816,0.27260433,616.21,613.36,0.917]
[1740930936016,0.27260433,616.2,613.37,0.29942616]
[1740930936215,0.27260433,616.19,613.37,0.29942616]
[1740930936516,1.69950919,616.24,613.37,0.29942616]
[1740930936517,0.27260433,616.18,613.37,0.29942616]
[1740930936716,0.27260433,616.17,613.37,0.29942616]
[1740930936917,0.27260433,616.16,613.37,0.29942616]
[1740930937118,0.27260433,616.15,613.37,0.29942616]
[1740930937316,0.27260433,616.14,613.37,0.29942616]
[1740930937520,0.27260433,616.13,613.37,0.29942616]
[1740930937719,0.27260433,616.12,613.37,0.29942616]
[1740930938014,0.27260433,616.11,613.37,0.29942616]
[1740930938317,0.27260433,616.1,613.37,0.29942616]
[1740930938514,0.27260433,616.09,613.37,0.29942616]
[1740930938717,0.27260433,616.08,613.37,0.29942616]
[1740930939119,0.27260433,616.07,613.37,0.29942616]
[1740930939319,0.27260433,616.06,613.37,0.29942616]
[1740930939618,0.27260433,616.05,613.37,0.29942616]
[1740930939821,0.27260433,616.04,613.36,0.917]
[1740930940115,0.27260433,616.03,613.36,0.917]
[1740930940321,0.27244041,616.02,613.37,0.29936376]
[1740930940520,0.27244041,616.01,613.37,0.29936376]
[1740930940818,0.27244041,616.0,613.37,0.29936376]
[1740930941020,0.27244041,615.99,613.37,0.29936376]
[1740930941220,0.27244041,615.98,613.37,0.29936376]
[1740930941424,0.27244041,615.97,613.37,0.29936376]
[1740930941621,1.69979282,616.13,613.37,0.29936376]
[1740930941622,0.27244041,615.96,613.37,0.29936376]
[1740930941821,1.69979282,616.13,613.36,0.917]
[1740930942017,0.27236033,615.95,613.37,0.29928241]
[1740930942318,0.27236033,615.94,613.37,0.29928241]
[1740930942518,0.27236033,615.93,613.37,0.29928241]
[1740930942722,0.27236033,615.92,613.37,0.29928241]
[1740930942922,0.27236033,615.91,613.37,0.29928241]
[1740930943121,1.69979282,616.13,613.37,0.29928241]
[1740930943122,0.27236033,615.9,613.37,0.29928241]
[1740930943322,0.27236033,615.89,613.37,0.29928241]
[1740930943625,0.27236033,615.88,613.37,0.29928241]
[1740930944021,1.97191102,615.87,613.37,0.29928241]
[1740930944222,0.27236033,615.86,613.37,0.29928241]
[1740930944523,0.27236033,615.85,613.37,0.29928241]
[1740930944723,0.27236033,615.84,613.36,0.29928241]
[1740930944923,0.27236033,615.83,613.37,0.29928241]
[1740930945124,0.27236033,615.82,613.36,0.29928241]
[1740930945324,0.27236033,615.81,613.37,0.29928241]
[1740930945520,0.27236033,615.81,613.35,0.73]
[1740930945521,0.27236033,615.8,613.36,0.29928241]
[1740930945726,0.27236033,615.79,613.37,0.29928241]
[1740930945922,0.27236033,615.78,613.38,0.29928241]
[1740930946126,0.27236033,615.77,613.39,0.29928241]
[1740930946425,0.32480714,615.75,613.49,0.32600368]
[1740930946625,0.27236033,615.74,613.49,0.32600368]
[1740930947729,0.27236033,615.73,613.5,0.687]
[1740930947919,0.27236033,615.72,613.5,0.687]
[1740930948120,0.27236033,615.71,613.5,0.687]
[1740930948326,0.27236033,615.7,613.5,0.687]
[1740930948727,0.27236033,615.69,613.5,0.687]
[1740930948927,0.32480714,615.75,613.5,0.687]
[1740930948928,0.27236033,615.68,613.5,0.687]
[1740930949122,0.27236033,615.74,613.5,0.687]
[1740930949324,0.27236033,615.73,613.5,0.687]
[1740930949727,0.27236033,615.72,613.5,0.687]
[1740930950027,0.27236033,615.71,613.5,0.687]
[1740930950230,0.27234078,615.7,613.51,0.29926251]
[1740930950428,0.27234078,615.69,613.51,0.29926251]
[1740930950624,0.27234078,615.68,613.51,0.29926251]
[1740930950824,0.27234078,615.67,613.51,0.29926251]
[1740930951023,0.27234078,615.66,613.51,0.29926251]
[1740930951231,0.27234078,615.65,613.51,0.29926251]
[1740930951429,0.27234078,615.64,613.51,0.29926251]
[1740930951728,1.69979974,615.72,613.51,0.29926251]
[1740930951729,0.27234078,615.63,613.51,0.29926251]
[1740930951930,0.27223012,615.62,613.52,0.29915046]
[1740930952229,0.27223012,615.61,613.53,0.29915046]
[1740930952422,0.27223012,615.6,613.54,0.29915046]
[1740930952624,0.27223012,615.59,613.55,0.29915046]
[1740930952826,0.27223012,615.74,613.51,0.29915046]
[1740930953027,1.69952303,615.58,613.52,0.29915046]
[1740930953225,0.27223012,615.57,613.51,0.29915046]
[1740930953425,0.32480714,615.75,613.5,0.687]
[1740930953623,1.69970288,615.57,613.51,0.29917286]
[1740930953830,0.27225248,615.56,613.51,0.29917286]
[1740930954031,1.69968904,615.56,613.51,0.29917286]
[1740930954231,0.27225248,615.55,613.61,0.32593992]
[1740930954432,0.27225248,615.55,613.91,1.16391059]
[1740930955232,0.2722544,615.54,613.91,1.16391059]
[1740930955433,0.2722544,615.53,613.92,0.29917631]
[1740930955625,0.2722544,615.52,613.91,1.16391059]
[1740930955830,0.2722544,615.51,613.91,1.16391059]
[1740930956029,0.2722544,615.55,613.91,1.16391059]
[1740930956229,0.2722544,615.54,613.91,1.16391059]
[1740930956432,0.2722544,615.53,613.91,1.16391059]
[1740930956736,0.2722544,615.52,613.91,1.16391059]
[1740930956929,0.27230619,615.51,613.91,1.16391059]
[1740930957128,0.27230619,615.5,613.81,1.16391059]
[1740930957328,0.27230619,615.55,613.81,1.16391059]
[1740930957534,0.27230619,615.54,613.81,1.16391059]
[1740930957834,0.27230619,615.53,613.81,1.16391059]
[1740930958039,0.27230619,615.52,613.81,1.16391059]
[1740930958337,0.27230619,615.51,613.81,1.16391059]
[1740930958539,0.27232538,615.5,613.82,0.32582841]
[1740930958833,0.27232538,615.49,613.82,0.32582841]
[1740930959037,0.27232538,615.48,613.82,0.32582841]
[1740930960639,1.69966137,615.49,613.82,0.32582841]
[1740930960839,0.27230962,615.48,613.82,0.32582841]
[1740930961439,0.27230952,615.47,613.82,0.32582841]
[1740930961741,0.27230952,615.46,613.82,0.32582841]
[1740930961934,0.27230952,615.74,613.82,0.32582841]
[1740930962138,0.27230952,615.45,613.83,0.29914262]
[1740930962335,0.27230952,615.44,613.83,0.29914262]
[1740930962735,0.27230952,615.43,613.83,0.29914262]
[1740930962943,0.27230952,615.42,613.83,0.29914262]
[1740930963136,0.32480714,615.75,613.83,0.29914262]
[1740930963137,0.27202947,615.74,613.83,0.29914262]
[1740930963342,0.32480714,615.75,613.83,0.29914262]
[1740930963645,0.27202273,615.74,613.83,0.29914262]
[1740930964343,0.27202273,615.74,613.94,1.16391059]
[1740930964545,0.27202273,615.74,613.95,0.29914262]
[1740930964938,0.27202273,615.74,613.94,1.16391059]
[1740930964939,0.27208871,615.73,613.96,0.29900712]
[1740930965142,0.27208871,615.72,613.97,0.29900712]
[1740930965341,0.27208871,615.71,613.98,0.29900712]
[1740930965539,0.27208871,615.74,613.95,0.29900712]
[1740930965741,0.27208871,615.73,613.96,0.29900712]
[1740930965943,0.27208871,615.73,613.97,0.29900712]
[1740930966138,0.27208871,615.72,613.95,0.29900712]
[1740930966338,0.27208871,615.74,613.97,0.32574881]
[1740930966643,0.27208871,615.71,613.97,0.32574881]
[1740930967240,0.27208871,615.73,613.98,0.29900712]
[1740930967439,0.27208871,615.72,613.97,0.32574881]
[1740930967639,0.27208871,615.71,613.97,0.32574881]
[1740930967843,0.27208871,615.7,613.97,0.32574881]
[1740930968044,0.27208871,615.69,613.97,0.32574881]
[1740930968244,0.27208871,615.68,613.97,0.32574881]
[1740930968441,0.27208871,615.67,613.97,0.32574881]
[1740930968747,0.27208871,615.66,613.98,1.026]
[1740930969047,0.27242163,615.65,613.98,1.026]
[1740930969250,0.27242163,615.64,613.98,1.026]
[1740930969446,0.27242163,615.63,613.98,1.026]
[1740930969639,0.27242163,615.62,613.98,1.026]
[1740930969841,0.27242163,615.61,613.98,1.026]
[1740930970044,0.27242163,615.6,613.98,1.026]
[1740930970241,0.27242163,615.59,613.98,1.026]
[1740930970543,0.27242163,615.58,613.98,1.026]